fUSD/lending_fUSD_20260511
["ID","MTS","AMOUNT","RATE_DAILY","PERIOD"]
[422001420,1778441432000,-390.87019027,0.000148,2]
[422001403,1778441432000,-237.85704777,0.00014703,2]
[422001412,1778441432000,-616.99,0.00014757,2]
[422001407,1778441432000,-437.28053615,0.00014703,2]
[422001410,1778441432000,-52.86241608,0.00014703,2]
[422001414,1778441432000,-190.6420715,0.000148,2]
[422001416,1778441432000,-324.094251,0.000148,2]
[422001418,1778441432000,-291.29775732,0.000148,2]
[422001385,1778441432000,-1008.39711396,0.00013807,2]
[422001422,1778441432000,-981.2309,0.000148,2]
[422001436,1778441432000,-6014.03758055,0.000148,2]
[422001425,1778441432000,-980.29278954,0.000148,2]
[422001405,1778441432000,-952.0,0.00014703,2]
[422001427,1778441432000,-507.104,0.000148,2]
[422001373,1778441432000,-37.37916176,0.00013697,2]
[422001381,1778441432000,-150.99,0.00013697,2]
[422001357,1778441432000,-182.33118742,0.00013099,2]
[422001358,1778441432000,-2696.25,0.00013175,2]
[422001359,1778441432000,-3404.01,0.00013313,2]
[422001360,1778441432000,-300.0,0.00013366,2]
[422001370,1778441432000,-150.0,0.00013696,2]
[422001367,1778441432000,-882.11,0.00013495,2]
[422001366,1778441432000,-175.0,0.00013486,2]
[422001361,1778441432000,-300.0,0.00013366,2]
[422001363,1778441432000,-4851.18,0.00013367,2]
[422001362,1778441432000,-1200.0,0.00013366,2]
[422001368,1778441432000,-196.59,0.00013563,2]
[422001383,1778441432000,-616.99,0.00013728,2]
[422001369,1778441432000,-180.17,0.0001362,2]
[422001365,1778441432000,-18.19293334,0.00013432,2]
[422001371,1778441432000,-8305.03,0.00013697,2]
[422001372,1778441432000,-971.61083824,0.00013697,2]
[422001374,1778441432000,-4714.03133216,0.00013697,2]
[422001376,1778441432000,-2860.62950549,0.00013697,2]
[422001375,1778441432000,-615.73022702,0.00013697,2]
[422001377,1778441432000,-665.79967857,0.00013697,2]
[422001378,1778441432000,-699.59791438,0.00013697,2]
[422001382,1778441432000,-200.0,0.00013699,2]
[422001379,1778441432000,-444.20134238,0.00013697,2]
[422001380,1778441432000,-299.99,0.00013697,2]
[422001364,1778441432000,-181.80706666,0.00013432,2]
[422001441,1778441432000,-1000.0,0.00014899,2]
[422001384,1778441432000,-2080.17592889,0.00013799,2]
[422001432,1778441432000,-2500.0,0.000148,2]
[422001507,1778441432000,-500.0,0.00014899,2]
[422001502,1778441432000,-500.0,0.00014899,2]
[422001506,1778441432000,-562.33761707,0.00014899,2]
[422001504,1778441432000,-500.0,0.00014899,2]
[422001508,1778441432000,-500.0,0.00014899,2]
[422001500,1778441432000,-500.0,0.00014899,2]
[422001509,1778441432000,-500.0,0.00014899,2]
[422001510,1778441432000,-218.33280387,0.00014899,2]
[422001512,1778441432000,-106.35250087,0.00014899,2]
[422001511,1778441432000,-281.66719613,0.00014899,2]
[422001513,1778441432000,-393.64749913,0.00014899,2]
[422001498,1778441432000,-500.0,0.00014899,2]
[422001514,1778441432000,-500.0,0.00014899,2]
[422001525,1778441432000,-500.0,0.00014899,2]
[422001522,1778441432000,-500.0,0.00014899,2]
[422001518,1778441432000,-500.0,0.00014899,2]
[422001526,1778441432000,-500.0,0.00014899,2]
[422001520,1778441432000,-500.0,0.00014899,2]
[422001530,1778441432000,-500.0,0.00014899,2]
[422001528,1778441432000,-500.0,0.00014899,2]
[422001532,1778441432000,-500.0,0.00014899,2]
[422001534,1778441432000,-500.0,0.00014899,2]
[422001536,1778441432000,-500.0,0.00014899,2]
[422001443,1778441432000,-500.0,0.00014899,2]
[422001516,1778441432000,-500.0,0.00014899,2]
[422001496,1778441432000,-500.0,0.00014899,2]
[422001538,1778441432000,-500.0,0.00014899,2]
[422001486,1778441432000,-500.0,0.00014899,2]
[422001494,1778441432000,-500.0,0.00014899,2]
[422001439,1778441432000,-145.99833258,0.000148,2]
[422001430,1778441432000,-15521.00681046,0.000148,2]
[422001445,1778441432000,-581.45081421,0.00014899,2]
[422001434,1778441432000,-2149.74903179,0.000148,2]
[422001447,1778441432000,-500.0,0.00014899,2]
[422001449,1778441432000,-257.01556995,0.00014899,2]
[422001451,1778441432000,-500.0,0.00014899,2]
[422001453,1778441432000,-500.0,0.00014899,2]
[422001460,1778441432000,-471.05012642,0.00014899,2]
[422001457,1778441432000,-500.0,0.00014899,2]
[422001462,1778441432000,-500.0,0.00014899,2]
[422001455,1778441432000,-509.68714748,0.00014899,2]
[422001466,1778441432000,-500.0,0.00014899,2]
[422001488,1778441432000,-500.0,0.00014899,2]
[422001464,1778441432000,-412.34123343,0.00014899,2]
[422001492,1778441432000,-500.0,0.00014899,2]
[422001490,1778441432000,-500.0,0.00014899,2]
[422001481,1778441432000,-500.0,0.00014899,2]
[422001476,1778441432000,-500.0,0.00014899,2]
[422001483,1778441432000,-500.0,0.00014899,2]
[422001479,1778441432000,-500.0,0.00014899,2]
[422001474,1778441432000,-13.05932686,0.00014899,2]
[422001469,1778441432000,-187.70589314,0.00014899,2]
[422001468,1778441432000,-500.0,0.00014899,2]
[422001472,1778441432000,-299.23478,0.00014899,2]
[422001559,1778441433000,-500.0,0.00014899,2]
[422001544,1778441433000,-500.0,0.00014899,2]
[422001542,1778441433000,-500.0,0.00014899,2]
[422001540,1778441433000,-500.0,0.00014899,2]
[422001548,1778441433000,-500.0,0.00014899,2]
[422001551,1778441433000,-500.0,0.00014899,2]
[422001552,1778441433000,-500.0,0.00014899,2]
[422001555,1778441433000,-500.0,0.00014899,2]
[422001547,1778441433000,-500.0,0.00014899,2]
[422001561,1778441433000,-376.6423731,0.00014899,2]
[422001557,1778441433000,-182.51589868,0.00014899,2]
[422001563,1778441433000,-213.07363719,0.00014899,2]
[422001567,1778441433000,-500.0,0.00014899,2]
[422001571,1778441433000,-149423.7458,0.000149,2]
[422001569,1778441433000,-500.0,0.00014899,2]
[422001575,1778441433000,-363.67499984,0.000149,2]
[422001573,1778441433000,-31471.84770016,0.000149,2]
[422001577,1778441433000,-41947.84393606,0.000149,2]
[422001582,1778441433000,-9442.72719467,0.000149,2]
[422001580,1778441433000,-164324.5233745,0.000149,2]
[422001584,1778441433000,-2088.41628585,0.000149,2]
[422001565,1778441433000,-500.0,0.00014899,2]
[422001618,1778441438000,-41368.5609813,0.00014998,2]
[422001630,1778441438000,-500.0,0.00014999,2]
[422001629,1778441438000,-500.0,0.00014999,2]
[422001626,1778441438000,-500.0,0.00014999,2]
[422001631,1778441438000,-500.0,0.00014999,2]
[422001633,1778441438000,-189.83929851,0.00014999,2]
[422001636,1778441438000,-500.0,0.00014999,2]
[422001634,1778441438000,-161.17831685,0.00014999,2]
[422001635,1778441438000,-500.0,0.00014999,2]
[422001622,1778441438000,-162.49380563,0.00014999,2]
[422001637,1778441438000,-500.0,0.00014999,2]
[422001639,1778441438000,-500.0,0.00014999,2]
[422001632,1778441438000,-500.0,0.00014999,2]
[422001625,1778441438000,-500.0,0.00014999,2]
[422001620,1778441438000,-500.0,0.00014999,2]
[422001623,1778441438000,-507.19084567,0.00014999,2]
[422001624,1778441438000,-500.0,0.00014999,2]
[422001621,1778441438000,-575.90720478,0.00014999,2]
[422001619,1778441438000,-3744.3978165,0.00014998,2]
[422001612,1778441438000,-500.0,0.00014973,2]
[422001613,1778441438000,-160.56875636,0.00014973,2]
[422001611,1778441438000,-5351.97002065,0.000149,2]
[422001610,1778441438000,-2627.92336012,0.000149,2]
[422001617,1778441438000,-11227.4068968,0.00014998,2]
[422001616,1778441438000,-500.0,0.00014997,2]
[422001615,1778441438000,-151.0,0.00014997,2]
[422001614,1778441438000,-180.77649535,0.0001499,2]
[422001609,1778441438000,-500.0,0.000149,2]
[422001608,1778441438000,-301422.3836488,0.000149,2]
[422001627,1778441438000,-500.0,0.00014999,2]
[422001638,1778441438000,-500.0,0.00014999,2]
[422001657,1778441438000,-198.46,0.000154,2]
[422001642,1778441438000,-205.88223055,0.00014999,2]
[422001640,1778441438000,-500.0,0.00014999,2]
[422001700,1778441438000,-153.0,0.00016438,2]
[422001691,1778441438000,-350.0,0.00016164,2]
[422001696,1778441438000,-198.46,0.0001621,2]
[422001694,1778441438000,-720.0,0.00016173,2]
[422001689,1778441438000,-161.54718026,0.00015665,2]
[422001687,1778441438000,-152.0,0.00015665,2]
[422001685,1778441438000,-152.0,0.00015665,2]
[422001683,1778441438000,-152.0,0.00015665,2]
[422001681,1778441438000,-193.50224669,0.00015665,2]
[422001677,1778441438000,-151.0,0.00015665,2]
[422001679,1778441438000,-151.0,0.00015665,2]
[422001673,1778441438000,-151.0,0.00015665,2]
[422001675,1778441438000,-300.0,0.00015665,2]
[422001669,1778441438000,-1537.0,0.00015665,2]
[422001698,1778441438000,-150.0,0.00016337,2]
[422001667,1778441438000,-1537.0,0.00015665,2]
[422001653,1778441438000,-331.8159672,0.00015147,2]
[422001641,1778441438000,-500.0,0.00014999,2]
[422001643,1778441438000,-17012.9996364,0.00015,2]
[422001645,1778441438000,-150.0,0.00015068,2]
[422001665,1778441438000,-250.0,0.00015616,2]
[422001644,1778441438000,-1714061.91240552,0.00015,2]
[422001647,1778441438000,-175.0,0.00015083,2]
[422001659,1778441438000,-175.0,0.00015483,2]
[422001649,1778441438000,-616.99,0.00015101,2]
[422001651,1778441438000,-1400.8881911,0.00015137,2]
[422001671,1778441438000,-1534.0,0.00015665,2]
[422001661,1778441438000,-633.27066016,0.00015521,2]
[422001663,1778441438000,-1609.20358183,0.00015547,21]
[422001655,1778441438000,-500.0,0.00015273,2]
[422001787,1778441439000,-331.8159672,0.00024008,2]
[422001796,1778441439000,-500.0,0.000244,2]
[422001798,1778441439000,-500.0,0.000244,2]
[422001785,1778441439000,-500.0,0.0002364,2]
[422001794,1778441439000,-1715.94,0.000243,7]
[422001764,1778441439000,-2149.74903177,0.00022265,2]
[422001779,1778441439000,-6160.03591306,0.00023167,2]
[422001781,1778441439000,-226.0,0.00023233,5]
[422001777,1778441439000,-1335.48,0.00023057,2]
[422001766,1778441439000,-1609.20358183,0.00022435,21]
[422001762,1778441439000,-500.0,0.00021927,2]
[422001783,1778441439000,-150.0,0.00023233,5]
[422001789,1778441439000,-183.40202408,0.00024188,2]
[422001812,1778441439000,-500.7987881,0.00024775,2]
[422001800,1778441439000,-500.0,0.00024467,2]
[422001802,1778441439000,-289.45986171,0.00024467,2]
[422001806,1778441439000,-1000.0,0.00024658,2]
[422001804,1778441439000,-157.73,0.00024559,2]
[422001808,1778441439000,-181.9,0.00024658,2]
[422001810,1778441439000,-181.12,0.00024658,2]
[422001820,1778441439000,-624.0,0.00025877,2]
[422001824,1778441439000,-6160.03591306,0.00025956,2]
[422001822,1778441439000,-1335.48,0.00025939,2]
[422001828,1778441439000,-181.9,0.00026027,7]
[422001826,1778441439000,-2149.74903177,0.00025997,2]
[422001830,1778441439000,-181.12,0.00026027,7]
[422001760,1778441439000,-5000.0,0.00021918,2]
[422001791,1778441439000,-10758.3375087,0.0002429,7]
[422001772,1778441439000,-503.0,0.00022877,2]
[422001735,1778441439000,-214.7734975,0.00018928,2]
[422001770,1778441439000,-740.37,0.00022691,2]
[422001814,1778441439000,-1001.51069064,0.00024948,2]
[422001704,1778441439000,-500.0,0.00016438,2]
[422001703,1778441439000,-500.0,0.00016438,2]
[422001707,1778441439000,-5775.9,0.00016599,2]
[422001709,1778441439000,-1715.94,0.000166,2]
[422001720,1778441439000,-252.90525986,0.0001726,2]
[422001722,1778441439000,-6160.03591306,0.00017589,2]
[422001724,1778441439000,-495.62268588,0.00017714,2]
[422001726,1778441439000,-152.0,0.00017917,2]
[422001729,1778441439000,-2149.74903177,0.00018532,2]
[422001731,1778441439000,-740.37,0.0001872,2]
[422001711,1778441439000,-450.0,0.00016712,2]
[422001713,1778441439000,-1110.04999599,0.00016986,2]
[422001774,1778441439000,-624.0,0.00022877,2]
[422001716,1778441439000,-507.72604448,0.00016986,2]
[422001737,1778441439000,-363.60720214,0.0001901,7]
[422001739,1778441439000,-152.0,0.00019117,2]
[422001741,1778441439000,-152.0,0.00019123,2]
[422001743,1778441439000,-839.06718577,0.00019178,2]
[422001749,1778441439000,-3166.0,0.0002,2]
[422001733,1778441439000,-882.11,0.00018892,2]
[422001751,1778441439000,-6160.03591306,0.00020378,2]
[422001747,1778441439000,-167.0,0.0002,2]
[422001745,1778441439000,-331.8159672,0.00019578,2]
[422001753,1778441439000,-180.17,0.00020431,2]
[422001756,1778441439000,-1715.94,0.000208,2]
[422001768,1778441439000,-29999.99,0.00022562,2]
[422001758,1778441439000,-391.95344314,0.00021484,15]
[422001718,1778441439000,-198.46,0.00017021,2]
[422001816,1778441439000,-501.45927776,0.00024948,2]
[422001899,1778441439000,-29993.46,0.000274,7]
[422001834,1778441439000,-233.57,0.00026133,2]
[422001907,1778441439000,-500.0,0.000278,7]
[422001893,1778441439000,-500.0,0.00027399,7]
[422001909,1778441439000,-748.0,0.000279,2]
[422001897,1778441439000,-246.48,0.000274,7]
[422001905,1778441439000,-1715.94,0.000276,7]
[422001891,1778441439000,-863.13,0.00027397,10]
[422001911,1778441439000,-1000.0,0.000279,2]
[422001913,1778441439000,-314.0,0.000279,2]
[422001917,1778441439000,-459.05385448,0.00028068,29]
[422001915,1778441439000,-500.0,0.00027983,5]
[422001919,1778441439000,-150.0,0.00028192,2]
[422001931,1778441439000,-6160.03591306,0.00028744,2]
[422001929,1778441439000,-1323.79338591,0.00028737,31]
[422001921,1778441439000,-331.8159672,0.00028439,2]
[422001933,1778441439000,-1335.48,0.00028821,2]
[422001927,1778441439000,-152.0,0.00028615,30]
[422001925,1778441439000,-152.0,0.00028606,30]
[422001923,1778441439000,-1001.67394318,0.00028531,5]
[422001935,1778441439000,-1805.61,0.000292,14]
[422001937,1778441439000,-2149.74903177,0.0002973,2]
[422001939,1778441439000,-246.48,0.000299,7]
[422001943,1778441439000,-354.82,0.0003,7]
[422001945,1778441439000,-151.0,0.00030127,7]
[422001947,1778441439000,-86949.15490566,0.0003013,7]
[422001953,1778441439000,-9230.5736368,0.00030145,2]
[422001949,1778441439000,-274.87184288,0.0003013,2]
[422001818,1778441439000,-313.12800716,0.00025015,2]
[422001895,1778441439000,-354.82,0.000274,7]
[422001903,1778441439000,-202.1297524,0.0002759,2]
[422001941,1778441439000,-29993.46,0.000299,7]
[422001951,1778441439000,-2505.1730989,0.00030145,2]
[422001832,1778441439000,-233.57,0.00026125,2]
[422001844,1778441439000,-152.0,0.00026355,7]
[422001836,1778441439000,-233.57,0.00026143,2]
[422001840,1778441439000,-181.9,0.00026187,2]
[422001849,1778441439000,-272.0,0.0002644,2]
[422001838,1778441439000,-181.11,0.00026174,2]
[422001842,1778441439000,-152.0,0.00026355,7]
[422001850,1778441439000,-150.0,0.0002644,2]
[422001901,1778441439000,-1805.61,0.000274,14]
[422001852,1778441439000,-190.0,0.0002644,2]
[422001854,1778441439000,-181.9,0.00026575,7]
[422001856,1778441439000,-181.12,0.00026575,7]
[422001858,1778441439000,-150.0,0.00026849,2]
[422001860,1778441439000,-500.0,0.00027123,7]
[422001846,1778441439000,-152.0,0.00026397,7]
[422001865,1778441439000,-500.0,0.00027123,7]
[422001889,1778441439000,-1035.76,0.00027397,10]
[422001875,1778441439000,-200.0,0.0002739,2]
[422001885,1778441439000,-651.79,0.00027397,10]
[422001887,1778441439000,-1242.91,0.00027397,10]
[422001871,1778441439000,-161.2090087,0.000273,2]
[422001867,1778441439000,-500.0,0.00027123,7]
[422001883,1778441439000,-303.6361363,0.0002739,2]
[422001881,1778441439000,-200.0,0.0002739,2]
[422001879,1778441439000,-200.0,0.0002739,2]
[422001877,1778441439000,-200.0,0.0002739,2]
[422001863,1778441439000,-500.0,0.00027123,7]
[422001873,1778441439000,-200.0,0.0002739,2]
[422001869,1778441439000,-637.83327204,0.00027123,7]
[422001995,1778441440000,-151.0,0.000324,7]
[422002001,1778441440000,-639.027289,0.000324,7]
[422002000,1778441440000,-639.027289,0.000324,7]
[422001997,1778441440000,-151.0,0.000324,7]
[422001998,1778441440000,-639.027289,0.000324,7]
[422001991,1778441440000,-542.413883,0.000324,7]
[422001996,1778441440000,-151.0,0.000324,7]
[422001994,1778441440000,-151.0,0.000324,7]
[422001992,1778441440000,-542.413883,0.000324,7]
[422001993,1778441440000,-151.0,0.000324,7]
[422001999,1778441440000,-639.027289,0.000324,7]
[422002010,1778441440000,-151.0,0.000324,7]
[422002014,1778441440000,-331.8159672,0.00032869,2]
[422002002,1778441440000,-151.0,0.000324,7]
[422002008,1778441440000,-732.885126,0.000324,7]
[422002009,1778441440000,-151.0,0.000324,7]
[422002006,1778441440000,-151.0,0.000324,7]
[422002013,1778441440000,-166.66,0.0003274,2]
[422002005,1778441440000,-732.885126,0.000324,7]
[422002004,1778441440000,-151.0,0.000324,7]
[422002003,1778441440000,-732.885126,0.000324,7]
[422002012,1778441440000,-155.0,0.0003251,30]
[422002007,1778441440000,-732.885126,0.000324,7]
[422002023,1778441440000,-2149.74903177,0.00033462,2]
[422002025,1778441440000,-558.9796747,0.00033525,2]
[422001990,1778441440000,-542.413883,0.000324,7]
[422002011,1778441440000,-151.0,0.000324,7]
[422001985,1778441440000,-151.0,0.000324,7]
[422001971,1778441440000,-162.916847,0.00031533,7]
[422001987,1778441440000,-151.0,0.000324,7]
[422002016,1778441440000,-151.0,0.00032877,7]
[422001955,1778441440000,-835.4880844,0.00030145,2]
[422001957,1778441440000,-500.0,0.00030173,5]
[422001961,1778441440000,-1805.61,0.000315,14]
[422001959,1778441440000,-155.0,0.0003051,30]
[422001963,1778441440000,-155.0,0.0003151,30]
[422001962,1778441440000,-1000.0,0.000315,7]
[422001964,1778441440000,-167.909271,0.00031533,7]
[422001966,1778441440000,-167.909271,0.00031533,7]
[422001967,1778441440000,-167.909271,0.00031533,7]
[422001965,1778441440000,-167.909271,0.00031533,7]
[422001973,1778441440000,-151.0,0.00031533,7]
[422001970,1778441440000,-151.0,0.00031533,7]
[422001968,1778441440000,-151.0,0.00031533,7]
[422001975,1778441440000,-151.0,0.00031533,7]
[422001974,1778441440000,-162.916847,0.00031533,7]
[422001969,1778441440000,-151.0,0.00031533,7]
[422001972,1778441440000,-162.916847,0.00031533,7]
[422001978,1778441440000,-1335.48,0.00031703,2]
[422001988,1778441440000,-152.274093,0.000324,7]
[422001989,1778441440000,-542.413883,0.000324,7]
[422001977,1778441440000,-6160.03591306,0.00031533,2]
[422001980,1778441440000,-354.82,0.000324,7]
[422001979,1778441440000,-246.48,0.000318,7]
[422001983,1778441440000,-151.0,0.000324,7]
[422001981,1778441440000,-29993.46,0.000324,7]
[422001984,1778441440000,-193.438959,0.000324,7]
[422001982,1778441440000,-151.0,0.000324,7]
[422002024,1778441440000,-155.0,0.0003351,30]
[422001976,1778441440000,-162.916847,0.00031533,7]
[422002015,1778441440000,-3559.69132161,0.0003287,7]
[422002052,1778441440000,-1715.94,0.000354,7]
[422002050,1778441440000,-150.0,0.00035209,7]
[422002054,1778441440000,-155.0,0.0003551,30]
[422002056,1778441440000,-367.795083,0.00035616,7]
[422002059,1778441440000,-367.795083,0.00035616,7]
[422002057,1778441440000,-367.795083,0.00035616,7]
[422002058,1778441440000,-367.795083,0.00035616,7]
[422002055,1778441440000,-1678.36323557,0.00035606,63]
[422002060,1778441440000,-150.0,0.00035742,7]
[422002062,1778441440000,-873.48821588,0.00035883,21]
[422002063,1778441440000,-150.0,0.00036,7]
[422002064,1778441440000,-150.0,0.00036,7]
[422002065,1778441440000,-150.0,0.00036,7]
[422002078,1778441440000,-150.0,0.00036194,7]
[422002068,1778441440000,-150.0,0.00036,7]
[422002074,1778441440000,-150.0,0.00036009,7]
[422002071,1778441440000,-201.69859976,0.00036,7]
[422002073,1778441440000,-150.0,0.00036,7]
[422002069,1778441440000,-150.0,0.00036,7]
[422002070,1778441440000,-150.0,0.00036,7]
[422002067,1778441440000,-150.0,0.00036,7]
[422002072,1778441440000,-150.0,0.00036,7]
[422002077,1778441440000,-150.0,0.00036129,7]
[422002075,1778441440000,-152.0,0.00036063,3]
[422002076,1778441440000,-150.0,0.00036065,7]
[422002079,1778441440000,-457.90180185,0.00036248,2]
[422002017,1778441440000,-151.0,0.00032877,7]
[422002053,1778441440000,-150.0,0.00035475,7]
[422002061,1778441440000,-150.0,0.00035872,21]
[422002066,1778441440000,-216.83912455,0.00036,7]
[422002046,1778441440000,-294.25,0.00035,2]
[422002051,1778441440000,-354.82,0.000353,30]
[422002020,1778441440000,-445.818006,0.00032877,7]
[422002022,1778441440000,-194.609999,0.00033,30]
[422002021,1778441440000,-445.818006,0.00032877,7]
[422002018,1778441440000,-445.818006,0.00032877,7]
[422002027,1778441440000,-186.42259,0.00033525,2]
[422002026,1778441440000,-2059.6193738,0.00033525,2]
[422002034,1778441440000,-150.0,0.00033875,7]
[422002028,1778441440000,-1805.61,0.000336,14]
[422002037,1778441440000,-29993.46,0.000342,7]
[422002033,1778441440000,-150.0,0.00033608,7]
[422002036,1778441440000,-500.0,0.00034199,7]
[422002029,1778441440000,-1480.024,0.000336,36]
[422002031,1778441440000,-151.0,0.00033608,7]
[422002030,1778441440000,-172.111,0.000336,36]
[422002032,1778441440000,-151.0,0.00033608,7]
[422002048,1778441440000,-1500.0,0.000352,7]
[422002047,1778441440000,-246.48,0.000352,30]
[422002043,1778441440000,-150.0,0.00034675,7]
[422002044,1778441440000,-441.36,0.00034864,30]
[422002040,1778441440000,-155.0,0.0003451,30]
[422002041,1778441440000,-1335.48,0.00034585,2]
[422002045,1778441440000,-150.0,0.00034942,7]
[422002019,1778441440000,-445.818006,0.00032877,7]
[422002038,1778441440000,-6160.03591306,0.00034322,2]
[422002049,1778441440000,-231.5748294,0.00035202,14]
[422002039,1778441440000,-150.0,0.00034408,7]
[422002035,1778441440000,-150.0,0.00034142,7]
[422002042,1778441440000,-479.78045926,0.00034652,59]
[422002136,1778441441000,-150.0,0.00037455,7]
[422002125,1778441441000,-6160.03591306,0.00037111,2]
[422002121,1778441441000,-203.0,0.00037065,2]
[422002120,1778441441000,-150.0,0.00037065,2]
[422002118,1778441441000,-150.0,0.00037032,7]
[422002119,1778441441000,-276.0,0.00037065,2]
[422002126,1778441441000,-150.0,0.00037143,7]
[422002116,1778441441000,-161.71,0.00037,2]
[422002122,1778441441000,-150.0,0.00037076,7]
[422002123,1778441441000,-150.0,0.00037091,7]
[422002112,1778441441000,-161.71,0.00037,2]
[422002114,1778441441000,-161.71,0.00037,2]
[422002117,1778441441000,-1715.94,0.00037,7]
[422002115,1778441441000,-161.71,0.00037,2]
[422002141,1778441441000,-150.0,0.00037714,7]
[422002129,1778441441000,-150.0,0.00037226,7]
[422002133,1778441441000,-233.27936031,0.00037342,7]
[422002131,1778441441000,-150.0,0.0003729,7]
[422002127,1778441441000,-150.0,0.00037161,7]
[422002124,1778441441000,-150.0,0.00037097,7]
[422002128,1778441441000,-2149.74903177,0.00037195,2]
[422002132,1778441441000,-331.8159672,0.000373,2]
[422002130,1778441441000,-157.0,0.00037281,7]
[422002134,1778441441000,-150.0,0.00037355,7]
[422002138,1778441441000,-150.0,0.00037548,7]
[422002148,1778441441000,-150.0,0.00038,7]
[422002146,1778441441000,-150.0,0.00037935,7]
[422002113,1778441441000,-161.71,0.00037,2]
[422002135,1778441441000,-150.0,0.00037419,7]
[422002111,1778441441000,-161.71,0.00037,2]
[422002082,1778441441000,-150.0,0.00036323,7]
[422002104,1778441441000,-853.32651933,0.00036939,2]
[422002081,1778441441000,-150.0,0.00036276,7]
[422002137,1778441441000,-150.0,0.00037484,7]
[422002083,1778441441000,-740.37,0.00036362,60]
[422002080,1778441441000,-150.0,0.00036258,7]
[422002084,1778441441000,-150.0,0.00036364,7]
[422002088,1778441441000,-150.0,0.00036516,7]
[422002085,1778441441000,-150.0,0.00036387,7]
[422002087,1778441441000,-155.0,0.0003651,30]
[422002093,1778441441000,-150.0,0.0003671,7]
[422002086,1778441441000,-150.0,0.00036452,7]
[422002094,1778441441000,-150.0,0.00036727,7]
[422002095,1778441441000,-150.0,0.00036774,7]
[422002091,1778441441000,-150.0,0.00036581,7]
[422002090,1778441441000,-150.0,0.00036571,7]
[422002096,1778441441000,-150.0,0.00036809,7]
[422002089,1778441441000,-150.0,0.00036542,7]
[422002092,1778441441000,-150.0,0.00036645,7]
[422002098,1778441441000,-1805.61,0.000369,14]
[422002108,1778441441000,-501.80635428,0.00036999,120]
[422002109,1778441441000,-161.71,0.00037,2]
[422002110,1778441441000,-161.71,0.00037,2]
[422002097,1778441441000,-150.0,0.00036839,7]
[422002099,1778441441000,-150.0,0.00036903,7]
[422002101,1778441441000,-343.63244301,0.00036939,2]
[422002102,1778441441000,-351.15842909,0.00036939,2]
[422002103,1778441441000,-526.35006308,0.00036939,2]
[422002107,1778441441000,-500.0,0.00036999,120]
[422002100,1778441441000,-250.0,0.00036918,7]
[422002105,1778441441000,-1794.48916065,0.00036939,2]
[422002106,1778441441000,-150.0,0.00036968,7]
[422002139,1778441441000,-150.0,0.00037613,7]
[422002157,1778441441000,-150.0,0.00038323,7]
[422002144,1778441441000,-150.0,0.00037818,7]
[422002180,1778441441000,-500.0,0.00038356,2]
[422002182,1778441441000,-403.84885926,0.00038356,2]
[422002179,1778441441000,-500.0,0.00038356,2]
[422002181,1778441441000,-500.0,0.00038356,2]
[422002185,1778441441000,-235.67289,0.00038356,30]
[422002188,1778441441000,-151.0,0.00038397,14]
[422002183,1778441441000,-500.0,0.00038356,2]